fUSD/lending_fUSD_20240210
["ID","MTS","AMOUNT","RATE_DAILY","PERIOD"]
[313700133,1707595846116,-151.0,0.00027397,7]
[313700134,1707595846125,-151.0,0.00027397,7]
[313700135,1707595846134,-151.0,0.00027397,7]
[313700136,1707595846143,-294.840215,0.00027397,7]
[313700137,1707595846151,-191.762908,0.00027397,7]
[313700138,1707595846160,-256.901872,0.00027397,7]
[313700139,1707595846168,-153.691658,0.00027397,7]
[313700140,1707595846177,-257.648141,0.00027397,7]
[313700141,1707595846186,-151.0,0.00027397,7]
[313700142,1707595846194,-156.999288,0.00027397,7]
[313700143,1707595846203,-151.643048,0.00027397,7]
[313700144,1707595846212,-151.915783,0.00027397,7]
[313700145,1707595846221,-151.0,0.00027397,7]
[313700146,1707595846229,-151.0,0.00027397,7]
[313700147,1707595846238,-769.175716,0.00027397,7]
[313700148,1707595846246,-769.175716,0.00027397,7]
[313700149,1707595846255,-769.175716,0.00027397,7]
[313700150,1707595846263,-769.175716,0.00027397,7]
[313700151,1707595846272,-769.175716,0.00027397,7]
[313700152,1707595846280,-769.175716,0.00027397,7]
[313700153,1707595846289,-769.175716,0.00027397,7]
[313700154,1707595846298,-4921.028672,0.00027397,7]
[313700155,1707595846307,-4921.028672,0.00027397,7]
[313700156,1707595846315,-769.175716,0.00027397,7]
[313700157,1707595846324,-769.175716,0.00027397,7]
[313700158,1707595846334,-4921.028672,0.00027397,7]
[313700159,1707595846342,-769.175716,0.00027397,7]
[313700160,1707595846351,-4921.028672,0.00027397,7]
[313700161,1707595846360,-769.175716,0.00027397,7]
[313700162,1707595846369,-4921.028672,0.00027397,7]
[313700163,1707595846378,-4921.028672,0.00027397,7]
[313700164,1707595846387,-4921.028672,0.00027397,7]
[313700165,1707595846396,-769.175716,0.00027397,7]
[313700166,1707595846405,-769.175716,0.00027397,7]
[313700167,1707595846413,-769.175716,0.00027397,7]
[313700168,1707595846422,-151.0,0.00027397,7]
[313700169,1707595846431,-4921.028672,0.00027397,7]
[313700170,1707595846440,-151.0,0.00027397,7]
[313700171,1707595846449,-4921.028672,0.00027397,7]
[313700172,1707595846457,-4921.028672,0.00027397,7]
[313700173,1707595846466,-4921.028672,0.00027397,7]
[313700174,1707595846474,-155.415048,0.00027397,7]
[313700175,1707595846483,-4921.028672,0.00027397,7]
[313700176,1707595846492,-500.0,0.000274,2]
[313700177,1707595846500,-1640.77,0.000274,2]
[313700178,1707595846509,-1640.77,0.000274,2]
[313700179,1707595846518,-1640.77,0.000274,2]
[313700180,1707595846528,-1640.77,0.000274,2]
[313700181,1707595846536,-1640.77,0.000274,2]
[313700182,1707595846546,-1640.77,0.000274,2]
[313700183,1707595846554,-1640.77,0.000274,2]
[313700184,1707595846563,-1640.77,0.000274,2]
[313700185,1707595846572,-1640.77,0.000274,2]
[313700186,1707595846581,-1640.77,0.000274,2]
[313700187,1707595846590,-12971.63186447,0.000275,2]
[313700188,1707595846599,-35287.04,0.00027556,2]
[313700189,1707595846608,-170.0,0.000276,16]
[313700190,1707595846616,-2857.63,0.00027643,2]
[313700191,1707595846626,-913.89,0.00027671,2]
[313700192,1707595846634,-1335.68,0.00027671,2]
[313700193,1707595846643,-913.89,0.00027671,2]
[313700194,1707595846652,-35287.04,0.00027714,2]
[313700195,1707595846661,-151.0,0.00027714,7]
[313700196,1707595846670,-151.0,0.00027714,7]
[313700197,1707595846680,-224.913742,0.00027714,2]
[313700198,1707595846689,-224.913742,0.00027714,2]
[313700199,1707595846697,-171.3731,0.00027714,7]
[313700200,1707595846706,-171.3731,0.00027714,7]
[313700201,1707595846715,-2610.85916227,0.00027755,3]
[313700202,1707595846725,-3263.66,0.0002787,2]
[313700203,1707595846734,-35287.04,0.00027872,2]
[313700204,1707595846743,-360.27108586,0.00027874,2]
[313700205,1707595846752,-19847.20563564,0.00027882,2]
[313700206,1707595846761,-300.0,0.000279,2]
[313700207,1707595846770,-1000.0,0.000279,2]
[313700208,1707595846778,-150.0,0.00027945,2]
[313700209,1707595846787,-7102.3406883,0.00027981,2]
[313700210,1707595846796,-71254.5580917,0.00027981,2]
[313700211,1707595846805,-15390.6824367,0.00027981,2]
[313700212,1707595846813,-2178.4808816,0.00027981,2]
[313700213,1707595846822,-691.71415836,0.00028,2]
[313700214,1707595846830,-253736.98059307,0.00028,2]
[313700215,1707595846839,-5494.76811195,0.00028,2]
[313700216,1707595846848,-1000.0,0.00028,2]
[313700217,1707595846856,-755.54671332,0.00028,2]
[313700218,1707595846865,-250903.47259253,0.00028,2]
[313700219,1707595846874,-500.0,0.00028,2]
[313700220,1707595846883,-151.0,0.00028,7]
[313700221,1707595846891,-279.861622,0.00028,7]
[313700222,1707595846901,-224.913742,0.00028,2]
[313700223,1707595846912,-224.913742,0.00028,2]
[313700224,1707595846921,-171.3731,0.00028,7]
[313700225,1707595846929,-171.3731,0.00028,7]
[313700226,1707595846938,-973.185122,0.00028,7]
[313700227,1707595846946,-294.35913,0.00028,7]
[313700228,1707595846957,-973.185122,0.00028,7]
[313700229,1707595846965,-294.35913,0.00028,7]
[313700230,1707595846974,-200.0,0.00028,2]
[313700231,1707595846984,-290.284581,0.00028,2]
[313700232,1707595846994,-769.175716,0.00028,7]
[313700233,1707595847002,-4921.028672,0.00028,7]
[313700234,1707595847011,-769.175716,0.00028,7]
[313700235,1707595847021,-444.55928242,0.00028,2]
[313700236,1707595847030,-35287.04,0.0002803,2]
[313700237,1707595847038,-170.0,0.000281,16]
[313700238,1707595847047,-1449.90822781,0.0002815,14]
[313700239,1707595847057,-152.84590354,0.00028178,2]
[313700240,1707595847065,-152.7897544,0.00028178,2]
[313700241,1707595847074,-35287.04,0.00028189,2]
[313700242,1707595847083,-151.0,0.00028347,7]
[313700243,1707595847091,-171.3731,0.00028347,7]
[313700244,1707595847100,-171.3731,0.00028347,7]
[313700245,1707595847109,-973.185122,0.00028347,7]
[313700246,1707595847118,-294.35913,0.00028347,7]
[313700247,1707595847127,-973.185122,0.00028347,7]
[313700248,1707595847136,-294.35913,0.00028347,7]
[313700249,1707595847145,-769.175716,0.00028347,7]
[313700250,1707595847154,-4921.028672,0.00028347,7]
[313700251,1707595847163,-769.175716,0.00028347,7]
[313700252,1707595847171,-35287.04,0.00028347,2]
[313700253,1707595847181,-702.55780236,0.00028373,4]
[313700254,1707595847190,-823.0,0.00028444,2]
[313700255,1707595847199,-2857.63,0.00028473,2]
[313700256,1707595847208,-150.0,0.00028493,2]
[313700257,1707595847217,-35287.04,0.00028505,2]
[313700258,1707595847226,-170.0,0.000286,17]
[313700259,1707595847235,-671.88,0.00028616,2]
[313700260,1707595847245,-651.4,0.0002863,2]
[313700261,1707595847254,-19847.20563564,0.00028632,2]
[313700262,1707595847263,-224.913742,0.00028632,2]
[313700263,1707595847272,-224.913742,0.00028632,2]
[313700264,1707595847281,-160.0,0.00028646,2]
[313700265,1707595847290,-160.0,0.00028654,2]
[313700266,1707595847300,-500.0,0.00028658,2]
[313700267,1707595847309,-500.0,0.00028661,2]
[313700268,1707595847318,-350.0,0.00028661,2]
[313700269,1707595847327,-500.0,0.00028661,2]
[313700270,1707595847337,-500.0,0.00028661,2]
[313700271,1707595847346,-500.0,0.00028661,2]
[313700272,1707595847356,-500.0,0.00028661,2]
[313700273,1707595847563,-500.0,0.00028661,2]
[313700274,1707595847572,-500.0,0.00028661,2]
[313700275,1707595847581,-500.0,0.00028661,2]
[313700276,1707595847591,-500.0,0.00028661,2]
[313700277,1707595847600,-500.0,0.00028661,2]
[313700278,1707595847609,-500.0,0.00028661,2]
[313700279,1707595847620,-500.0,0.00028661,2]
[313700280,1707595847629,-500.0,0.00028661,2]
[313700281,1707595847638,-500.0,0.00028661,2]
[313700282,1707595847647,-500.0,0.00028661,2]
[313700283,1707595847656,-500.0,0.00028661,2]
[313700284,1707595847665,-500.0,0.00028661,2]
[313700285,1707595847674,-500.0,0.00028661,2]
[313700286,1707595847683,-500.0,0.00028661,2]
[313700287,1707595847692,-500.0,0.00028661,2]
[313700288,1707595847701,-500.0,0.00028661,2]
[313700289,1707595847710,-500.0,0.00028661,2]
[313700290,1707595847719,-500.0,0.00028661,2]
[313700291,1707595847729,-500.0,0.00028661,2]
[313700292,1707595847738,-500.0,0.00028661,2]
[313700293,1707595847747,-35287.04,0.00028664,2]
[313700294,1707595847756,-500.0,0.0002868,2]
[313700295,1707595847765,-500.0,0.00028688,2]
[313700296,1707595847774,-500.0,0.00028691,2]
[313700297,1707595847784,-13517.92682766,0.00028697,2]
[313700298,1707595847793,-330.45366524,0.00028697,2]
[313700299,1707595847803,-500.0,0.00028697,2]
[313700300,1707595847812,-500.0,0.000287,2]
[313700301,1707595847821,-500.0,0.000287,2]
[313700302,1707595847831,-150.1,0.000287,4]
[313700303,1707595847840,-500.0,0.00028706,2]
[313700304,1707595847849,-500.0,0.00028706,2]
[313700305,1707595847858,-16000.0,0.00028706,2]
[313700306,1707595847867,-9095.41095438,0.00028706,2]
[313700307,1707595847877,-239.454289,0.00028739,2]
[313700308,1707595847887,-267.09203,0.00028739,2]
[313700309,1707595847897,-151.7143,0.00028739,2]
[313700310,1707595847909,-152.169153,0.00028739,2]
[313700311,1707595847918,-172.498787,0.00028739,2]
[313700312,1707595847928,-363.101182,0.00028739,2]
[313700313,1707595847937,-1200.483822,0.00028739,2]
[313700314,1707595847947,-169.856372,0.00028739,2]
[313700315,1707595847956,-174.166142,0.00028739,2]
[313700316,1707595847965,-190.466186,0.00028739,2]
[313700317,1707595847974,-266.020589,0.00028739,2]
[313700318,1707595847985,-195.05869,0.00028739,2]
[313700319,1707595847994,-173.136724,0.00028739,2]
[313700320,1707595848003,-190.630253,0.00028739,2]
[313700321,1707595848013,-7312.927488,0.00028739,2]
[313700322,1707595848022,-190.466183,0.00028739,2]
[313700323,1707595848031,-173.810294,0.00028739,2]
[313700324,1707595848040,-2075.782989,0.00028739,2]
[313700325,1707595848049,-172.919355,0.00028739,2]
[313700326,1707595848058,-175.552822,0.00028739,2]
[313700327,1707595848069,-155.0,0.00028767,2]
[313700328,1707595848078,-755.822,0.00028821,2]
[313700329,1707595848087,-194706.83831209,0.00028822,2]
[313700330,1707595848096,-35287.04,0.00028822,2]
[313700331,1707595848105,-973.185122,0.00028822,7]
[313700332,1707595848115,-294.35913,0.00028822,7]
[313700333,1707595848124,-973.185115,0.00028822,7]
[313700334,1707595848133,-294.359134,0.00028822,7]
[313700335,1707595848142,-769.175716,0.00028822,7]
[313700336,1707595848152,-4921.028672,0.00028822,7]
[313700337,1707595848162,-769.175718,0.00028822,7]
[313700338,1707595848171,-2610.85916227,0.00028827,4]
[313700339,1707595848180,-165.37,0.00028851,2]
[313700340,1707595848189,-151.0,0.00028851,7]
[313700341,1707595848199,-171.3731,0.00028851,7]
[313700342,1707595848208,-171.373091,0.00028851,7]
[313700343,1707595848218,-321.0,0.00028857,2]
[313700344,1707595848227,-2519.0,0.00028857,2]
[313700345,1707595848237,-343.0,0.00028857,2]
[313700346,1707595848246,-224.913742,0.0002886,2]
[313700347,1707595848255,-224.913742,0.0002886,2]
[313700348,1707595848264,-7849.9554976,0.0002886,2]
[313700349,1707595848274,-78755.0378908,0.0002886,2]
[313700350,1707595848283,-17033.9634924,0.0002886,2]
[313700351,1707595848292,-2411.0798178,0.0002886,2]
[313700352,1707595848302,-754.022,0.0002888,2]
[313700353,1707595848311,-19818.0,0.0002888,2]
[313700354,1707595848320,-5143.308,0.0002888,2]
[313700355,1707595848329,-2286.0,0.0002888,2]
[313700356,1707595848339,-1036.0,0.0002888,2]
[313700357,1707595848348,-594272.95630517,0.0002888,2]
[313700358,1707595848357,-151.0,0.0002888,7]
[313700359,1707595848366,-224.913742,0.0002888,2]
[313700360,1707595848377,-224.913742,0.0002888,2]
[313700361,1707595848386,-840.0,0.00028956,2]
[313700362,1707595848395,-2831.0,0.00028956,2]
[313700363,1707595848405,-951.0,0.00028956,2]
[313700364,1707595848414,-1232.0,0.00028956,2]
[313700365,1707595848424,-1253.0,0.00028956,2]
[313700366,1707595848433,-29924.0,0.00029,2]
[313700367,1707595848442,-327.9811296,0.00029,2]
[313700368,1707595848451,-1350.0,0.00029,3]
[313700369,1707595848461,-150.0,0.00029041,2]
[313700370,1707595848470,-363.101182,0.00029098,2]
[313700371,1707595848480,-1200.483822,0.00029098,2]
[313700372,1707595848489,-7312.927488,0.00029098,2]
[313700373,1707595848498,-2075.782989,0.00029098,2]
[313700374,1707595848507,-175.552822,0.00029098,2]
[313700375,1707595848516,-170.0,0.000291,17]
[313700376,1707595848526,-369.0,0.00029138,2]
[313700377,1707595848535,-8597.5703069,0.00029176,2]
[313700378,1707595848544,-86255.5176899,0.00029176,2]
[313700379,1707595848553,-18677.2445481,0.00029176,2]
[313700380,1707595848563,-2643.6787541,0.00029176,2]
[313700381,1707595848572,-950.8075528,0.00029181,2]
[313700382,1707595848581,-198.34965624,0.00029181,2]
[313700383,1707595848590,-992.58276336,0.00029181,2]
[313700384,1707595848599,-240.54158221,0.00029181,2]
[313700385,1707595848608,-200000.0,0.00029196,7]
[313700386,1707595848617,-224.913742,0.00029196,2]
[313700387,1707595848627,-224.913744,0.00029196,2]
[313700388,1707595848637,-200000.0,0.00029218,7]
[313700389,1707595848647,-200000.0,0.00029218,7]
[313700390,1707595848656,-630.12,0.00029281,2]
[313700391,1707595848666,-19847.20563564,0.00029381,2]
[313700392,1707595848676,-152.169153,0.00029458,2]
[313700393,1707595848685,-363.101182,0.00029458,2]
[313700394,1707595848694,-1200.483822,0.00029458,2]
[313700395,1707595848704,-195.05869,0.00029458,2]
[313700396,1707595848713,-7312.927488,0.00029458,2]
[313700397,1707595848722,-2075.782989,0.00029458,2]
[313700398,1707595848732,-175.552822,0.00029458,2]
[313700399,1707595848741,-227.00530143,0.000295,3]
[313700400,1707595848751,-462.35,0.00029509,2]
[313700401,1707595848760,-3263.66,0.00029514,2]
[313700402,1707595848770,-150.0,0.00029589,2]
[313700403,1707595848779,-170.0,0.000296,18]
[313700404,1707595848789,-207.0,0.00029638,13]
[313700405,1707595848798,-4944.00299631,0.00029699,2]
[313700406,1707595848808,-211.29114182,0.00029711,2]
[313700407,1707595848818,-176.98585251,0.000298,2]
[313700408,1707595848827,-363.101182,0.00029817,2]
[313700409,1707595848836,-1200.483822,0.00029817,2]
[313700410,1707595848846,-7312.927488,0.00029817,2]
[313700411,1707595848855,-2075.782989,0.00029817,2]
[313700412,1707595848865,-175.552822,0.00029817,2]
[313700413,1707595848874,-71645.72511981,0.000299,2]
[313700414,1707595848883,-1449.90822781,0.000299,17]
[313700415,1707595848893,-2610.85916227,0.000299,4]
[313700416,1707595848903,-6419.99051606,0.0002996,2]
[313700417,1707595848914,-9345.1851162,0.00029979,2]
[313700418,1707595848924,-93755.9974891,0.00029979,2]
[313700419,1707595848933,-20320.5256038,0.00029979,2]
[313700420,1707595848942,-2876.2776903,0.00029979,2]
[313700421,1707595848952,-151.0,0.00029996,2]
[313700422,1707595848961,-39225.42780599,0.00029996,2]
[313700423,1707595848971,-150876.644617,0.00029999,2]
[313700424,1707595848980,-50000.0,0.0003,2]
[313700425,1707595848990,-405.5599385,0.0003,4]
[313700426,1707595849000,-910.73661852,0.0003,4]
[313700427,1707595849010,-448.73493482,0.0003,4]
[313700428,1707595849019,-156.34939822,0.0003,4]
[313700429,1707595849029,-818.92618057,0.0003,4]
[313700430,1707595849038,-4143.81924691,0.0003,2]
[313700431,1707595849048,-588.95321847,0.0003,2]
[313700432,1707595849057,-19139.32910649,0.0003,4]
[313700433,1707595849067,-155.77266645,0.0003,4]
[313700434,1707595849077,-1816.55563643,0.0003,4]
[313700435,1707595849086,-3000.0,0.0003,2]
[313700436,1707595849095,-396.59503377,0.0003,3]
[313700437,1707595849106,-192967.706,0.0003,2]
[313700438,1707595849115,-2000.0,0.0003,2]
[313700439,1707595849125,-368.5962773,0.0003,4]
[313700440,1707595849135,-155.48065286,0.0003,4]
[313700441,1707595849145,-155.22302261,0.0003,4]
[313700442,1707595849154,-155.55685611,0.0003,4]
[313700443,1707595849164,-195.43246941,0.0003,4]
[313700444,1707595849174,-155.30694181,0.0003,4]
[313700445,1707595849184,-2654.24680678,0.0003,4]
[313700446,1707595849193,-173.28795114,0.0003,4]
[313700447,1707595849203,-750.14973773,0.0003,2]
[313700448,1707595849213,-1191.36,0.0003,2]
[313700449,1707595849223,-326.04070424,0.0003,2]
[313700450,1707595849232,-313.27791858,0.0003,2]
[313700451,1707595849242,-1000.0,0.0003,3]
[313700452,1707595849252,-1000.0,0.0003,3]
[313700453,1707595849262,-176.82372163,0.0003,4]
[313700454,1707595849271,-500.0,0.0003,2]
[313700455,1707595849281,-158.18588323,0.0003,5]
[313700456,1707595849291,-3000.0,0.0003,2]
[313700457,1707595849300,-3000.0,0.0003,2]
[313700458,1707595849310,-153.75,0.0003,2]
[313700459,1707595849320,-153.75,0.0003,2]
[313700460,1707595849329,-153.75,0.0003,2]
[313700461,1707595849340,-153.75,0.0003,2]
[313700462,1707595849350,-153.75,0.0003,2]
[313700463,1707595849360,-153.75,0.0003,2]
[313700464,1707595849370,-200.0,0.0003,2]
[313700465,1707595849381,-3000.0,0.0003,2]
[313700466,1707595849391,-3000.0,0.0003,2]
[313700467,1707595849401,-3000.0,0.0003,2]
[313700468,1707595849410,-3000.0,0.0003,2]
[313700469,1707595849420,-3000.0,0.0003,2]
[313700470,1707595849429,-3000.0,0.0003,2]
[313700471,1707595849439,-2088.68274,0.0003,2]
[313700472,1707595849448,-167.987867,0.0003,2]
[313700473,1707595849457,-204.0,0.0003,2]
[313700474,1707595849467,-1000.0,0.0003,2]
[313700475,1707595849476,-3000.0,0.0003001,2]
[313700476,1707595849485,-5467.234947,0.0003002,2]
[313700477,1707595849495,-653.78,0.00030022,2]
[313700478,1707595849505,-170.0,0.000301,18]
[313700479,1707595849515,-19847.20563564,0.00030131,2]
[313700480,1707595849524,-15613.06,0.00030137,2]
[313700481,1707595849534,-150.0,0.00030137,2]
[313700482,1707595849543,-155.0,0.00030137,2]
[313700483,1707595849553,-156.67333248,0.00030137,2]
[313700484,1707595849563,-190.630253,0.00030176,2]
[313700485,1707595849573,-190.466183,0.00030176,2]
[313700486,1707595849583,-152.169153,0.00030176,2]
[313700487,1707595849592,-363.101182,0.00030176,2]
[313700488,1707595849602,-1200.483822,0.00030176,2]
[313700489,1707595849611,-195.05869,0.00030176,2]
[313700490,1707595849621,-7312.927488,0.00030176,2]
[313700491,1707595849630,-2075.782989,0.00030176,2]
[313700492,1707595849640,-175.552822,0.00030176,2]
[313700493,1707595849649,-437.34280354,0.000302,2]
[313700494,1707595849659,-171840.0,0.0003026,5]
[313700495,1707595849669,-453.0,0.0003043,2]
[313700496,1707595849679,-170.0,0.000306,19]
[313700497,1707595849689,-150.0,0.00030714,2]
[313700498,1707595849698,-1030.66260837,0.0003075,2]
[313700499,1707595849708,-1000.0,0.000308,2]
[313700500,1707595849718,-75829.7933499,0.000308,2]
[313700501,1707595849728,-500.0,0.000308,2]
[313700502,1707595849737,-671.88,0.0003088,2]
[313700503,1707595849747,-173.73557067,0.0003088,2]
[313700504,1707595849757,-19847.20563564,0.0003088,2]
[313700505,1707595849767,-15999.16891715,0.000309,2]
[313700506,1707595849777,-39225.42780599,0.00030975,2]
[313700507,1707595849787,-274577.99464193,0.00030977,2]
[313700508,1707595849796,-3927145.21745432,0.0003098,2]
[313700509,1707595849806,-200000.0,0.00030994,7]
[313700510,1707595849885,-50000.0,0.00031,2]
[313700511,1707595849896,-339.21094698,0.00031,4]
[313700512,1707595849908,-155.6040122,0.00031,4]
[313700513,1707595849917,-371.76701925,0.00031,2]
[313700514,1707595849927,-2076.46656144,0.00031,7]
[313700515,1707595849936,-1386.0,0.00031,3]
[313700516,1707595849946,-7168.66559272,0.00031,4]
[313700517,1707595849956,-7647.35030142,0.00031,2]
[313700518,1707595849965,-1400.0,0.00031,3]
[313700519,1707595849975,-1998.44,0.00031,2]
[313700520,1707595849985,-305.44,0.00031,2]
[313700521,1707595849995,-170.0,0.000311,19]
[313700522,1707595850005,-150.0,0.00031291,2]
[313700523,1707595850014,-538.87567825,0.000314,30]
[313700524,1707595850023,-151.0,0.00031432,120]
[313700525,1707595850033,-1000.0,0.000315,2]
[313700526,1707595850042,-155.0,0.00031507,2]
[313700527,1707595850051,-1000.0,0.00031583,7]
[313700528,1707595850060,-423.84767307,0.00031583,2]
[313700529,1707595850071,-1000.0,0.00031583,7]
[313700530,1707595850080,-1000.0,0.00031583,7]
[313700531,1707595850089,-1000.0,0.00031583,7]
[313700532,1707595850098,-4310.49093709,0.00031583,5]
[313700533,1707595850107,-1000.0,0.00031583,7]
[313700534,1707595850117,-1000.0,0.00031583,7]
[313700535,1707595850127,-1000.0,0.00031583,7]
[313700536,1707595850137,-1000.0,0.00031583,7]
[313700537,1707595850146,-2601.42461223,0.00031583,5]
[313700538,1707595850155,-170.0,0.000316,20]
[313700539,1707595850165,-253.16,0.00031644,2]
[313700540,1707595850174,-180.0,0.00031644,2]
[313700541,1707595850185,-773.93877124,0.00031742,2]
[313700542,1707595850194,-558.0,0.0003178,3]
[313700543,1707595850204,-905.03127682,0.000318,2]
[313700544,1707595850213,-91521.8323498,0.000318,2]
[313700545,1707595850222,-2519.0,0.00031857,2]
[313700546,1707595850232,-343.0,0.00031857,2]
[313700547,1707595850241,-150.0,0.00031867,2]
[313700548,1707595850250,-19818.0,0.0003188,2]
[313700549,1707595850260,-2286.0,0.0003188,2]
[313700550,1707595850269,-1036.0,0.0003188,2]
[313700551,1707595850279,-1500.0,0.000319,2]
[313700552,1707595850289,-630.12,0.00031942,2]
[313700553,1707595850298,-840.0,0.00031956,2]
[313700554,1707595850307,-2831.0,0.00031956,2]
[313700555,1707595850317,-951.0,0.00031956,2]
[313700556,1707595850326,-1232.0,0.00031956,2]
[313700557,1707595850336,-1253.0,0.00031956,2]
[313700558,1707595850345,-50000.0,0.00032,3]
[313700559,1707595850354,-13153.45698237,0.00032,4]
[313700560,1707595850364,-18325.72114477,0.00032,2]
[313700561,1707595850374,-1970.06457049,0.00032,2]
[313700562,1707595850383,-1000.0,0.00032,3]
[313700563,1707595850393,-300.0,0.00032,33]
[313700564,1707595850402,-249.33097091,0.00032067,2]
[313700565,1707595850412,-151.0,0.00032073,30]
[313700566,1707595850421,-170.0,0.000321,21]
[313700567,1707595850430,-1000.0,0.00032143,2]
[313700568,1707595850439,-462.35,0.00032192,2]
[313700569,1707595850448,-165.25,0.00032246,2]
[313700570,1707595850458,-150.0,0.00032444,2]
[313700571,1707595850467,-305.44,0.00032455,2]
[313700572,1707595850476,-165.37,0.00032457,2]
[313700573,1707595850485,-170.0,0.000326,21]
[313700574,1707595850495,-1998.44,0.00032705,2]
[313700575,1707595850504,-151.0,0.00032728,7]
[313700576,1707595850513,-317597.10446905,0.0003278,5]
[313700577,1707595850522,-681.97,0.00032876,2]
[313700578,1707595850531,-55535.04,0.00032877,2]
[313700579,1707595850540,-37260.02,0.00032877,2]
[313700580,1707595850549,-150.0,0.00032877,30]
[313700581,1707595850563,-155.0,0.00032877,2]
[313700582,1707595850573,-375.0,0.000329,2]
[313700583,1707595850582,-50000.0,0.00033,3]
[313700584,1707595850591,-493.34606694,0.00033,4]
[313700585,1707595850601,-285.84592277,0.00033,5]
[313700586,1707595850610,-527.39000837,0.00033,4]
[313700587,1707595850620,-7425.03791715,0.00033,2]
[313700588,1707595850629,-964.15190369,0.00033,2]
[313700589,1707595850638,-600.0,0.00033,34]
[313700590,1707595850648,-1450.0,0.00033,3]
[313700591,1707595850657,-204.0,0.00033,2]
[313700592,1707595850666,-1000.0,0.0003302,7]
[313700593,1707595850675,-150.0,0.00033021,2]
[313700594,1707595850685,-1600.268967,0.00033082,2]
[313700595,1707595850694,-170.0,0.000331,22]
[313700596,1707595850703,-671.88,0.00033144,2]
[313700597,1707595850713,-681.97,0.0003315,2]
[313700598,1707595850722,-150.1,0.000332,2]
[313700599,1707595850732,-150.1,0.000332,3]
[313700600,1707595850741,-153.75,0.000332,2]
[313700601,1707595850750,-153.75,0.000332,2]
[313700602,1707595850759,-153.75,0.000332,2]
[313700603,1707595850768,-153.75,0.000332,2]
[313700604,1707595850777,-153.75,0.000332,2]
[313700605,1707595850787,-153.75,0.000332,2]
[313700606,1707595850796,-153.75,0.000332,2]
[313700607,1707595850805,-153.75,0.000332,2]
[313700608,1707595850814,-153.75,0.000332,2]
[313700609,1707595850823,-153.75,0.000332,2]
[313700610,1707595850832,-153.75,0.000332,2]
[313700611,1707595850841,-153.75,0.000332,2]
[313700612,1707595850850,-5865.26286863,0.000333,4]
[313700613,1707595850859,-151.0,0.00033396,4]
[313700614,1707595850868,-283.56866487,0.00033404,2]
[313700615,1707595850878,-681.97,0.00033424,2]
[313700616,1707595850887,-207.0,0.00033433,19]
[313700617,1707595850899,-1600.268967,0.00033495,2]
[313700618,1707595850908,-731.71422531,0.000335,2]
[313700619,1707595850917,-1000.0,0.000335,2]
[313700620,1707595850927,-1831.78,0.000335,2]
[313700621,1707595850936,-1831.78,0.000335,2]
[313700622,1707595850946,-1831.78,0.000335,2]
[313700623,1707595850956,-1831.78,0.000335,2]
[313700624,1707595850965,-1831.78,0.000335,2]
[313700625,1707595850975,-1831.78,0.000335,2]
[313700626,1707595850985,-1831.78,0.000335,2]
[313700627,1707595850995,-1831.78,0.000335,2]
[313700628,1707595851004,-1831.78,0.000335,2]
[313700629,1707595851013,-1831.78,0.000335,2]
[313700630,1707595851023,-1831.78,0.000335,2]
[313700631,1707595851033,-1831.78,0.000335,2]
[313700632,1707595851042,-1831.78,0.000335,2]